[Event "Titled Tuesday Blitz May 23 Late 2023"]
[White "Weinstein, Joshua Ross"]
[Black "Kielinkei"]
[WhiteFideId "30927714"]
[WhiteElo "2349"]
[BlackElo "2459"]
[Result "0-1"]
[Round "09"]
[TimeControl "180+2"]
[Date "2023.05.23"]
[WhiteClock "0:00:16"]
[BlackClock "0:00:06"]

1. e4 {[%clk 0:03:00]}  c5 {[%clk 0:02:59]} 2. Nc3 {[%clk 0:03:01]}  a6 {[%clk 0:02:58]} 3. a4 {[%clk 0:03:01]}  Nc6 {[%clk 0:02:57]} 4. Bc4 {[%clk 0:03:01]}  e6 {[%clk 0:02:57]} 5. d3 {[%clk 0:03:02]}  g6 {[%clk 0:02:57]} 6. f4 {[%clk 0:03:01]}  Bg7 {[%clk 0:02:53]} 7. Nf3 {[%clk 0:03:00]}  Nge7 {[%clk 0:02:53]} 8. Bb3 {[%clk 0:02:59]}  d5 {[%clk 0:02:50]} 9. e5 {[%clk 0:02:58]}  f6 {[%clk 0:02:45]} 10. exf6 {[%clk 0:02:57]}  Bxf6 {[%clk 0:02:45]} 11. O-O {[%clk 0:02:54]}  O-O {[%clk 0:02:45]} 12. Ne2 {[%clk 0:02:51]}  Qd6 {[%clk 0:02:38]} 13. c3 {[%clk 0:02:45]}  e5 {[%clk 0:02:16]} 14. fxe5 {[%clk 0:02:40]}  Nxe5 {[%clk 0:02:17]} 15. Bh6 {[%clk 0:02:20]}  Bg7 {[%clk 0:02:07]} 16. Bxg7 {[%clk 0:02:16]}  Nxf3+ {[%clk 0:02:04]} 17. Rxf3 {[%clk 0:02:07]}  Rxf3 {[%clk 0:02:03]} 18. gxf3 {[%clk 0:02:02]}  Kxg7 {[%clk 0:02:03]} 19. Qd2 {[%clk 0:01:47]}  Be6 {[%clk 0:01:56]} 20. Nf4 {[%clk 0:01:42]}  Bf7 {[%clk 0:01:56]} 21. Re1 {[%clk 0:01:40]}  Nf5 {[%clk 0:01:54]} 22. d4 {[%clk 0:01:29]}  cxd4 {[%clk 0:01:36]} 23. cxd4 {[%clk 0:01:28]}  Rd8 {[%clk 0:01:29]} 24. Re5 {[%clk 0:01:22]}  Qb6 {[%clk 0:01:07]} 25. Bxd5 {[%clk 0:01:04]}  Nxd4 {[%clk 0:01:02]} 26. Kg2 {[%clk 0:00:40]}  Nf5 {[%clk 0:00:41]} 27. Qc3 {[%clk 0:00:24]}  Kg8 {[%clk 0:00:17]} 28. Bxf7+ {[%clk 0:00:19]}  Kxf7 {[%clk 0:00:17]} 29. a5 {[%clk 0:00:18]}  Qd6 {[%clk 0:00:07]} 30. Rd5 {[%clk 0:00:15]}  Qxf4 {[%clk 0:00:04]} 31. Rxd8 {[%clk 0:00:15]}  Qg5+ {[%clk 0:00:03]} 32. Kf2 {[%clk 0:00:15]}  Qxd8 {[%clk 0:00:04]} 33. Qb3+ {[%clk 0:00:15]}  Kg7 {[%clk 0:00:04]} 34. Qxb7+ {[%clk 0:00:16]}  Qe7 {[%clk 0:00:04]} 35. Qxa6 {[%clk 0:00:16]}  Qe3+ {[%clk 0:00:04]} 36. Kg2 {[%clk 0:00:16]}  Qd2+ {[%clk 0:00:04]} 37. Kf1 {[%clk 0:00:16]}  Qc1+ {[%clk 0:00:04]} 38. Kf2 {[%clk 0:00:15]}  Qxb2+ {[%clk 0:00:05]} 39. Kg1 {[%clk 0:00:15]}  Qc1+ {[%clk 0:00:05]} 40. Kf2 {[%clk 0:00:16]}  Qd2+ {[%clk 0:00:06]} 41. Kf1 {[%clk 0:00:16]}  Ne3+ {[%clk 0:00:05]} 42. Kg1 {[%clk 0:00:16]}  Qg2# {[%clk 0:00:06]} 0-1


[Site "https://www.chess.com"]

[Event "Titled Tuesday Blitz May 23 Late 2023"]
[White "Buchenau, Frank"]
[Black "ThaBarWa"]
[WhiteFideId "4604350"]
[WhiteElo "2157"]
[BlackElo "2337"]
[Result "1/2-1/2"]
[Round "09"]
[TimeControl "180+2"]
[Date "2023.05.23"]
[WhiteClock "0:00:03"]
[BlackClock "0:00:07"]

1. e4 {[%clk 0:03:00]}  e6 {[%clk 0:03:00]} 2. d4 {[%clk 0:03:00]}  d5 {[%clk 0:03:00]} 3. Nd2 {[%clk 0:03:00]}  Nf6 {[%clk 0:03:00]} 4. e5 {[%clk 0:03:00]}  Nfd7 {[%clk 0:03:00]} 5. c3 {[%clk 0:03:00]}  c5 {[%clk 0:02:58]} 6. Bd3 {[%clk 0:03:00]}  b6 {[%clk 0:02:59]} 7. Nh3 {[%clk 0:02:54]}  Ba6 {[%clk 0:02:58]} 8. Bxa6 {[%clk 0:02:53]}  Nxa6 {[%clk 0:02:58]} 9. Nf4 {[%clk 0:02:43]}  Rc8 {[%clk 0:02:51]} 10. O-O {[%clk 0:02:30]}  Qc7 {[%clk 0:02:39]} 11. c4 {[%clk 0:02:08]}  dxc4 {[%clk 0:02:06]} 12. d5 {[%clk 0:02:07]}  Qxe5 {[%clk 0:01:54]} 13. Nf3 {[%clk 0:02:06]}  Qd6 {[%clk 0:01:47]} 14. Re1 {[%clk 0:01:50]}  e5 {[%clk 0:01:44]} 15. Qa4 {[%clk 0:01:46]}  b5 {[%clk 0:01:34]} 16. Qxb5 {[%clk 0:01:42]}  Nc7 {[%clk 0:01:33]} 17. Qa4 {[%clk 0:01:28]}  f6 {[%clk 0:01:10]} 18. Nd2 {[%clk 0:01:24]}  Be7 {[%clk 0:01:01]} 19. Nxc4 {[%clk 0:01:24]}  Qa6 {[%clk 0:01:01]} 20. Qxa6 {[%clk 0:01:12]}  Nxa6 {[%clk 0:01:02]} 21. Ne6 {[%clk 0:01:10]}  Kf7 {[%clk 0:00:57]} 22. Bd2 {[%clk 0:00:58]}  Nb6 {[%clk 0:00:55]} 23. Nxb6 {[%clk 0:00:55]}  axb6 {[%clk 0:00:56]} 24. f4 {[%clk 0:00:54]}  Nc7 {[%clk 0:00:37]} 25. Nxc7 {[%clk 0:00:50]}  Rxc7 {[%clk 0:00:38]} 26. fxe5 {[%clk 0:00:50]}  fxe5 {[%clk 0:00:39]} 27. Bc3 {[%clk 0:00:49]}  Bf6 {[%clk 0:00:29]} 28. Bxe5 {[%clk 0:00:48]}  Rd7 {[%clk 0:00:29]} 29. Bxf6 {[%clk 0:00:46]}  Kxf6 {[%clk 0:00:26]} 30. Re6+ {[%clk 0:00:41]}  Kf7 {[%clk 0:00:27]} 31. Rxb6 {[%clk 0:00:36]}  Rxd5 {[%clk 0:00:27]} 32. a4 {[%clk 0:00:34]}  Ra8 {[%clk 0:00:24]} 33. a5 {[%clk 0:00:32]}  Rd7 {[%clk 0:00:22]} 34. a6 {[%clk 0:00:31]}  Rda7 {[%clk 0:00:22]} 35. Ra5 {[%clk 0:00:28]}  h6 {[%clk 0:00:20]} 36. Rb7+ {[%clk 0:00:26]}  Rxb7 {[%clk 0:00:12]} 37. axb7 {[%clk 0:00:25]}  Rb8 {[%clk 0:00:13]} 38. Rb5 {[%clk 0:00:21]}  Ke6 {[%clk 0:00:13]} 39. Kf2 {[%clk 0:00:20]}  Kd6 {[%clk 0:00:12]} 40. Rb6+ {[%clk 0:00:19]}  Kc7 {[%clk 0:00:11]} 41. Rg6 {[%clk 0:00:19]}  Rg8 {[%clk 0:00:10]} 42. Ke3 {[%clk 0:00:15]}  Kxb7 {[%clk 0:00:10]} 43. Kd3 {[%clk 0:00:16]}  Kc7 {[%clk 0:00:10]} 44. Kc4 {[%clk 0:00:16]}  Rb8 {[%clk 0:00:07]} 45. Rxg7+ {[%clk 0:00:16]}  Kd6 {[%clk 0:00:06]} 46. Rg6+ {[%clk 0:00:15]}  Ke5 {[%clk 0:00:07]} 47. b3 {[%clk 0:00:15]}  Rb4+ {[%clk 0:00:06]} 48. Kc3 {[%clk 0:00:16]}  Rh4 {[%clk 0:00:06]} 49. h3 {[%clk 0:00:15]}  Kd5 {[%clk 0:00:06]} 50. Rg4 {[%clk 0:00:14]}  Rh5 {[%clk 0:00:04]} 51. Rf4 {[%clk 0:00:11]}  Rg5 {[%clk 0:00:04]} 52. g4 {[%clk 0:00:09]}  Re5 {[%clk 0:00:05]} 53. h4 {[%clk 0:00:09]}  Re3+ {[%clk 0:00:05]} 54. Kc2 {[%clk 0:00:09]}  Rh3 {[%clk 0:00:06]} 55. g5 {[%clk 0:00:08]}  hxg5 {[%clk 0:00:06]} 56. hxg5 {[%clk 0:00:09]}  Rg3 {[%clk 0:00:07]} 57. Rf5+ {[%clk 0:00:09]}  Kd4 {[%clk 0:00:07]} 58. Kb2 {[%clk 0:00:08]}  Rg2+ {[%clk 0:00:06]} 59. Ka3 {[%clk 0:00:08]}  Rg1 {[%clk 0:00:07]} 60. Ka4 {[%clk 0:00:09]}  Ra1+ {[%clk 0:00:03]} 61. Kb5 {[%clk 0:00:08]}  Rb1 {[%clk 0:00:04]} 62. Kc6 {[%clk 0:00:08]}  Rxb3 {[%clk 0:00:04]} 63. Rd5+ {[%clk 0:00:06]}  Ke4 {[%clk 0:00:04]} 64. Rxc5 {[%clk 0:00:06]}  Rg3 {[%clk 0:00:05]} 65. Kd6 {[%clk 0:00:05]}  Kf4 {[%clk 0:00:06]} 66. Ke6 {[%clk 0:00:03]}  Rxg5 {[%clk 0:00:06]} 67. Rxg5 {[%clk 0:00:03]}  Kxg5 {[%clk 0:00:07]} 1/2-1/2


[Site "https://www.chess.com"]

[Event "Titled Tuesday Blitz May 23 Late 2023"]
[White "Gatterer, Florian"]
[Black "Chen, Ryo"]
[WhiteFideId "811688"]
[BlackFideId "7003072"]
[WhiteElo "2221"]
[BlackElo "2169"]
[Result "1/2-1/2"]
[Round "09"]
[TimeControl "180+2"]
[Date "2023.05.23"]
[WhiteClock "0:00:04"]
[BlackClock "0:01:28"]

1. e4 {[%clk 0:02:56]}  c5 {[%clk 0:03:00]} 2. Nf3 {[%clk 0:02:49]}  d6 {[%clk 0:03:00]} 3. Bb5+ {[%clk 0:02:49]}  Nd7 {[%clk 0:02:59]} 4. c4 {[%clk 0:02:46]}  Nf6 {[%clk 0:02:58]} 5. Nc3 {[%clk 0:02:41]}  e5 {[%clk 0:02:58]} 6. O-O {[%clk 0:02:40]}  Be7 {[%clk 0:02:57]} 7. d3 {[%clk 0:02:38]}  O-O {[%clk 0:02:58]} 8. Re1 {[%clk 0:02:35]}  Ne8 {[%clk 0:02:57]} 9. Nd2 {[%clk 0:02:29]}  Nc7 {[%clk 0:02:56]} 10. Ba4 {[%clk 0:02:28]}  a6 {[%clk 0:02:53]} 11. Nf1 {[%clk 0:02:20]}  Rb8 {[%clk 0:02:52]} 12. Bc2 {[%clk 0:02:16]}  b5 {[%clk 0:02:52]} 13. b3 {[%clk 0:02:16]}  b4 {[%clk 0:02:51]} 14. Ne2 {[%clk 0:02:07]}  Ne6 {[%clk 0:02:51]} 15. Ne3 {[%clk 0:02:06]}  Bg5 {[%clk 0:02:48]} 16. Nd5 {[%clk 0:02:05]}  Bxc1 {[%clk 0:02:47]} 17. Qxc1 {[%clk 0:02:05]}  Nf6 {[%clk 0:02:46]} 18. Ne3 {[%clk 0:01:58]}  Nd4 {[%clk 0:02:44]} 19. Bd1 {[%clk 0:01:52]}  Nxe2+ {[%clk 0:02:37]} 20. Bxe2 {[%clk 0:01:48]}  Ne8 {[%clk 0:02:37]} 21. Bg4 {[%clk 0:01:44]}  Nc7 {[%clk 0:02:35]} 22. Bxc8 {[%clk 0:01:36]}  Rxc8 {[%clk 0:02:34]} 23. a3 {[%clk 0:01:36]}  a5 {[%clk 0:02:33]} 24. axb4 {[%clk 0:01:36]}  axb4 {[%clk 0:02:34]} 25. Qd2 {[%clk 0:01:25]}  Ne6 {[%clk 0:02:32]} 26. Nc2 {[%clk 0:00:57]}  g6 {[%clk 0:02:29]} 27. Ra7 {[%clk 0:00:53]}  Qf6 {[%clk 0:02:23]} 28. g3 {[%clk 0:00:49]}  Ng5 {[%clk 0:02:19]} 29. Qe2 {[%clk 0:00:25]}  Nf3+ {[%clk 0:02:17]} 30. Kg2 {[%clk 0:00:24]}  Nxe1+ {[%clk 0:02:17]} 31. Qxe1 {[%clk 0:00:25]}  Ra8 {[%clk 0:02:17]} 32. Rxa8 {[%clk 0:00:21]}  Rxa8 {[%clk 0:02:18]} 33. Ne3 {[%clk 0:00:20]}  Ra2 {[%clk 0:02:18]} 34. Nd5 {[%clk 0:00:20]}  Qg5 {[%clk 0:02:18]} 35. Qd1 {[%clk 0:00:14]}  h5 {[%clk 0:02:11]} 36. h4 {[%clk 0:00:13]}  Qd8 {[%clk 0:02:10]} 37. Qf3 {[%clk 0:00:13]}  Kg7 {[%clk 0:02:10]} 38. Qe3 {[%clk 0:00:13]}  f6 {[%clk 0:02:08]} 39. Qf3 {[%clk 0:00:11]}  Rb2 {[%clk 0:02:06]} 40. g4 {[%clk 0:00:09]}  f5 {[%clk 0:01:49]} 41. gxf5 {[%clk 0:00:07]}  Qxh4 {[%clk 0:01:48]} 42. f6+ {[%clk 0:00:05]}  Kf7 {[%clk 0:01:47]} 43. Qe3 {[%clk 0:00:05]}  Qg4+ {[%clk 0:01:47]} 44. Kh2 {[%clk 0:00:04]}  Rxb3 {[%clk 0:01:47]} 45. Qh6 {[%clk 0:00:03]}  Qh4+ {[%clk 0:01:43]} 46. Kg2 {[%clk 0:00:03]}  Qg4+ {[%clk 0:01:28]} 47. Kh2 {[%clk 0:00:04]} 1/2-1/2


[Site "https://www.chess.com"]

[Event "Titled Tuesday Blitz May 23 Late 2023"]
[White "Erzhanov, Arman"]
[Black "zsizsi99"]
[WhiteFideId "4138821"]
[WhiteElo "2138"]
[BlackElo "2389"]
[Result "1-0"]
[Round "09"]
[TimeControl "180+2"]
[Date "2023.05.23"]
[WhiteClock "0:00:16"]
[BlackClock "0:00:00"]

1. e4 {[%clk 0:03:00]}  c5 {[%clk 0:02:55]} 2. Nf3 {[%clk 0:02:59]}  e6 {[%clk 0:02:53]} 3. b3 {[%clk 0:02:59]}  d5 {[%clk 0:02:52]} 4. Bb5+ {[%clk 0:02:58]}  Bd7 {[%clk 0:02:49]} 5. Bxd7+ {[%clk 0:02:59]}  Qxd7 {[%clk 0:02:49]} 6. exd5 {[%clk 0:02:59]}  exd5 {[%clk 0:02:49]} 7. O-O {[%clk 0:03:00]}  Nf6 {[%clk 0:02:50]} 8. d4 {[%clk 0:02:56]}  Be7 {[%clk 0:02:45]} 9. dxc5 {[%clk 0:02:55]}  Bxc5 {[%clk 0:02:45]} 10. Re1+ {[%clk 0:02:55]}  Be7 {[%clk 0:02:44]} 11. Ba3 {[%clk 0:02:54]}  Nc6 {[%clk 0:02:43]} 12. Ne5 {[%clk 0:02:55]}  Nxe5 {[%clk 0:02:37]} 13. Rxe5 {[%clk 0:02:56]}  O-O {[%clk 0:02:30]} 14. Bxe7 {[%clk 0:02:42]}  Qc7 {[%clk 0:02:21]} 15. Re2 {[%clk 0:02:28]}  Ng4 {[%clk 0:02:15]} 16. g3 {[%clk 0:02:23]}  Rfe8 {[%clk 0:02:05]} 17. Bg5 {[%clk 0:02:08]}  h5 {[%clk 0:01:42]} 18. Bf4 {[%clk 0:02:04]}  Qb6 {[%clk 0:01:40]} 19. Nc3 {[%clk 0:01:57]}  Qa5 {[%clk 0:01:26]} 20. Bd2 {[%clk 0:01:39]}  Qc5 {[%clk 0:01:21]} 21. h3 {[%clk 0:01:21]}  Nf6 {[%clk 0:01:19]} 22. Na4 {[%clk 0:01:06]}  Qb5 {[%clk 0:01:18]} 23. Rxe8+ {[%clk 0:01:00]}  Rxe8 {[%clk 0:01:19]} 24. Be3 {[%clk 0:00:59]}  b6 {[%clk 0:01:18]} 25. Qd3 {[%clk 0:00:56]}  Qc6 {[%clk 0:01:13]} 26. Rd1 {[%clk 0:00:54]}  Rc8 {[%clk 0:01:05]} 27. c4 {[%clk 0:00:37]}  dxc4 {[%clk 0:01:00]} 28. Qxc4 {[%clk 0:00:35]}  Qxc4 {[%clk 0:00:46]} 29. bxc4 {[%clk 0:00:36]}  Rxc4 {[%clk 0:00:46]} 30. Rd8+ {[%clk 0:00:35]}  Kh7 {[%clk 0:00:45]} 31. Rd4 {[%clk 0:00:36]}  Rc2 {[%clk 0:00:45]} 32. Rd2 {[%clk 0:00:37]}  Rc4 {[%clk 0:00:43]} 33. Nb2 {[%clk 0:00:36]}  Rb4 {[%clk 0:00:39]} 34. Nd3 {[%clk 0:00:36]}  Ra4 {[%clk 0:00:38]} 35. Kg2 {[%clk 0:00:33]}  Ne4 {[%clk 0:00:35]} 36. Rc2 {[%clk 0:00:33]}  f6 {[%clk 0:00:35]} 37. Nf4 {[%clk 0:00:33]}  h4 {[%clk 0:00:32]} 38. gxh4 {[%clk 0:00:32]}  Nd6 {[%clk 0:00:31]} 39. h5 {[%clk 0:00:31]}  Nf5 {[%clk 0:00:31]} 40. Kf3 {[%clk 0:00:28]}  Ra3 {[%clk 0:00:31]} 41. Rb2 {[%clk 0:00:26]}  b5 {[%clk 0:00:28]} 42. Ke4 {[%clk 0:00:26]}  Nd6+ {[%clk 0:00:28]} 43. Kd5 {[%clk 0:00:26]}  Nc4 {[%clk 0:00:20]} 44. Re2 {[%clk 0:00:26]}  a5 {[%clk 0:00:19]} 45. Kc5 {[%clk 0:00:26]}  Nxe3 {[%clk 0:00:16]} 46. fxe3 {[%clk 0:00:27]}  b4 {[%clk 0:00:16]} 47. Kc4 {[%clk 0:00:26]}  Rc3+ {[%clk 0:00:16]} 48. Kb5 {[%clk 0:00:26]}  Kh6 {[%clk 0:00:16]} 49. Nd5 {[%clk 0:00:20]}  Ra3 {[%clk 0:00:16]} 50. Nf4 {[%clk 0:00:18]}  b3 {[%clk 0:00:12]} 51. axb3 {[%clk 0:00:18]}  Rxb3+ {[%clk 0:00:12]} 52. Kc4 {[%clk 0:00:19]}  Rb4+ {[%clk 0:00:12]} 53. Kd3 {[%clk 0:00:19]}  Rb5 {[%clk 0:00:12]} 54. Ra2 {[%clk 0:00:19]}  Re5 {[%clk 0:00:12]} 55. Ra4 {[%clk 0:00:19]}  Kg5 {[%clk 0:00:11]} 56. Kd4 {[%clk 0:00:19]}  Kh6 {[%clk 0:00:11]} 57. Rc4 {[%clk 0:00:19]}  Rb5 {[%clk 0:00:10]} 58. Rc5 {[%clk 0:00:19]}  Rb4+ {[%clk 0:00:10]} 59. Kc3 {[%clk 0:00:19]}  Re4 {[%clk 0:00:10]} 60. Kd3 {[%clk 0:00:19]}  Ra4 {[%clk 0:00:10]} 61. Rc8 {[%clk 0:00:18]}  Kh7 {[%clk 0:00:09]} 62. Ra8 {[%clk 0:00:18]}  Kh6 {[%clk 0:00:08]} 63. Ra6 {[%clk 0:00:17]}  Ra1 {[%clk 0:00:08]} 64. Kc3 {[%clk 0:00:16]}  a4 {[%clk 0:00:08]} 65. Kb4 {[%clk 0:00:16]}  Re1 {[%clk 0:00:06]} 66. Re6 {[%clk 0:00:16]}  Ra1 {[%clk 0:00:05]} 67. Re8 {[%clk 0:00:16]}  a3 {[%clk 0:00:04]} 68. Kb3 {[%clk 0:00:16]}  Kg5 {[%clk 0:00:00]} 69. Rg8 {[%clk 0:00:16]} 1-0


[Site "https://www.chess.com"]

[Event "Titled Tuesday Blitz May 23 Late 2023"]
[White "Guerra Tulcan, Lenin"]
[Black "Carrasco Miranda, Andres"]
[WhiteFideId "3601382"]
[BlackFideId "3405990"]
[WhiteElo "2368"]
[BlackElo "2183"]
[Result "1-0"]
[Round "09"]
[TimeControl "180+2"]
[Date "2023.05.23"]
[WhiteClock "0:01:10"]
[BlackClock "0:00:00"]

1. e4 {[%clk 0:02:57]}  e5 {[%clk 0:02:59]} 2. Nf3 {[%clk 0:02:56]}  Nc6 {[%clk 0:02:59]} 3. d4 {[%clk 0:02:56]}  exd4 {[%clk 0:03:00]} 4. Bc4 {[%clk 0:02:56]}  Bc5 {[%clk 0:03:00]} 5. c3 {[%clk 0:02:55]}  d6 {[%clk 0:02:54]} 6. cxd4 {[%clk 0:02:50]}  Bb4+ {[%clk 0:02:54]} 7. Nc3 {[%clk 0:02:50]}  Nf6 {[%clk 0:02:52]} 8. O-O {[%clk 0:02:47]}  O-O {[%clk 0:02:49]} 9. Bg5 {[%clk 0:02:44]}  h6 {[%clk 0:02:49]} 10. Bh4 {[%clk 0:02:43]}  Bg4 {[%clk 0:02:46]} 11. Nd5 {[%clk 0:02:40]}  g5 {[%clk 0:02:30]} 12. Bg3 {[%clk 0:02:26]}  Nxe4 {[%clk 0:02:29]} 13. Qd3 {[%clk 0:02:10]}  Bf5 {[%clk 0:02:21]} 14. Qb3 {[%clk 0:02:04]}  Nd2 {[%clk 0:02:06]} 15. Nxd2 {[%clk 0:02:00]}  Bxd2 {[%clk 0:02:07]} 16. Rad1 {[%clk 0:01:46]}  Nxd4 {[%clk 0:01:54]} 17. Qxb7 {[%clk 0:01:46]}  Rb8 {[%clk 0:00:23]} 18. Qxc7 {[%clk 0:01:45]}  Rxb2 {[%clk 0:00:23]} 19. Qxa7 {[%clk 0:01:17]}  Nc6 {[%clk 0:00:00]} 20. Qa3 {[%clk 0:01:10]} 1-0


[Site "https://www.chess.com"]

[Event "Titled Tuesday Blitz May 23 Late 2023"]
[White "Bruedigam, Martin"]
[Black "Gerbelli Neto, Eduardo"]
[WhiteFideId "24608033"]
[BlackFideId "2103281"]
[WhiteElo "2331"]
[BlackElo "2178"]
[Result "1-0"]
[Round "09"]
[TimeControl "180+2"]
[Date "2023.05.23"]
[WhiteClock "0:00:48"]
[BlackClock "0:00:00"]

1. d4 {[%clk 0:02:57]}  d5 {[%clk 0:02:57]} 2. c4 {[%clk 0:02:57]}  c6 {[%clk 0:02:56]} 3. Nf3 {[%clk 0:02:56]}  Nf6 {[%clk 0:02:56]} 4. e3 {[%clk 0:02:56]}  e6 {[%clk 0:02:56]} 5. b3 {[%clk 0:02:54]}  Nbd7 {[%clk 0:02:56]} 6. Bd3 {[%clk 0:02:49]}  Bb4+ {[%clk 0:02:50]} 7. Bd2 {[%clk 0:02:46]}  a5 {[%clk 0:02:47]} 8. O-O {[%clk 0:02:46]}  Qe7 {[%clk 0:02:46]} 9. Nc3 {[%clk 0:02:38]}  dxc4 {[%clk 0:02:41]} 10. bxc4 {[%clk 0:02:34]}  e5 {[%clk 0:02:41]} 11. Qc2 {[%clk 0:02:33]}  O-O {[%clk 0:02:35]} 12. Ne4 {[%clk 0:02:26]}  Bxd2 {[%clk 0:02:11]} 13. Nfxd2 {[%clk 0:02:22]}  Nxe4 {[%clk 0:02:08]} 14. Nxe4 {[%clk 0:02:19]}  f5 {[%clk 0:02:06]} 15. Nc3 {[%clk 0:02:17]}  e4 {[%clk 0:02:06]} 16. Be2 {[%clk 0:02:17]}  Nf6 {[%clk 0:01:58]} 17. Rab1 {[%clk 0:02:16]}  Re8 {[%clk 0:01:42]} 18. Rb6 {[%clk 0:02:07]}  Qf7 {[%clk 0:01:16]} 19. Rfb1 {[%clk 0:02:05]}  Re7 {[%clk 0:01:15]} 20. Na4 {[%clk 0:02:02]}  Nd7 {[%clk 0:01:07]} 21. R6b2 {[%clk 0:01:59]}  f4 {[%clk 0:01:02]} 22. exf4 {[%clk 0:01:50]}  Qxf4 {[%clk 0:01:03]} 23. Qd2 {[%clk 0:01:34]}  Qf6 {[%clk 0:00:49]} 24. Qe3 {[%clk 0:01:30]}  Nf8 {[%clk 0:00:36]} 25. Nc5 {[%clk 0:01:26]}  Ng6 {[%clk 0:00:32]} 26. g3 {[%clk 0:01:19]}  Qf5 {[%clk 0:00:14]} 27. Nxb7 {[%clk 0:01:13]}  Qh3 {[%clk 0:00:13]} 28. Bf1 {[%clk 0:01:09]}  Qh5 {[%clk 0:00:12]} 29. Nd6 {[%clk 0:01:02]}  Bg4 {[%clk 0:00:11]} 30. Rb8+ {[%clk 0:01:01]}  Rxb8 {[%clk 0:00:09]} 31. Rxb8+ {[%clk 0:01:02]}  Nf8 {[%clk 0:00:10]} 32. c5 {[%clk 0:00:58]}  Qg6 {[%clk 0:00:00]} 33. Qf4 {[%clk 0:00:48]} 1-0


[Site "https://www.chess.com"]

[Event "Titled Tuesday Blitz May 23 Late 2023"]
[White "Seletsky, Grigory"]
[Black "Hernandez Leon, Alberto"]
[WhiteFideId "14112191"]
[BlackFideId "2272555"]
[WhiteElo "2491"]
[BlackElo "2239"]
[Result "0-1"]
[Round "09"]
[TimeControl "180+2"]
[Date "2023.05.23"]
[WhiteClock "0:00:00"]
[BlackClock "0:00:06"]

1. b3 {[%clk 0:02:59]}  d5 {[%clk 0:02:58]} 2. Bb2 {[%clk 0:03:00]}  Bg4 {[%clk 0:02:58]} 3. Nf3 {[%clk 0:02:56]}  Bxf3 {[%clk 0:02:58]} 4. exf3 {[%clk 0:02:55]}  e6 {[%clk 0:02:57]} 5. f4 {[%clk 0:02:54]}  Nf6 {[%clk 0:02:58]} 6. g3 {[%clk 0:02:53]}  c5 {[%clk 0:02:57]} 7. Bg2 {[%clk 0:02:53]}  Nc6 {[%clk 0:02:58]} 8. O-O {[%clk 0:02:53]}  Bd6 {[%clk 0:02:56]} 9. d3 {[%clk 0:02:52]}  O-O {[%clk 0:02:56]} 10. Nd2 {[%clk 0:02:52]}  e5 {[%clk 0:02:52]} 11. f5 {[%clk 0:02:49]}  Re8 {[%clk 0:02:26]} 12. g4 {[%clk 0:02:46]}  e4 {[%clk 0:02:23]} 13. dxe4 {[%clk 0:02:44]}  Nxe4 {[%clk 0:02:15]} 14. Nxe4 {[%clk 0:02:42]}  dxe4 {[%clk 0:02:15]} 15. Re1 {[%clk 0:02:40]}  Be5 {[%clk 0:01:39]} 16. Bxe5 {[%clk 0:02:30]}  Rxe5 {[%clk 0:01:26]} 17. Qxd8+ {[%clk 0:02:25]}  Rxd8 {[%clk 0:01:26]} 18. Bxe4 {[%clk 0:02:25]}  Rde8 {[%clk 0:01:20]} 19. f3 {[%clk 0:02:23]}  Nd4 {[%clk 0:01:21]} 20. Kf2 {[%clk 0:02:24]}  b6 {[%clk 0:01:12]} 21. Re3 {[%clk 0:02:14]}  Nxc2 {[%clk 0:01:07]} 22. Bxc2 {[%clk 0:02:08]}  Rxe3 {[%clk 0:01:06]} 23. Be4 {[%clk 0:02:08]}  Rc3 {[%clk 0:01:02]} 24. Rd1 {[%clk 0:02:05]}  c4 {[%clk 0:00:40]} 25. bxc4 {[%clk 0:01:59]}  Rxc4 {[%clk 0:00:40]} 26. Rd7 {[%clk 0:02:00]}  Ra4 {[%clk 0:00:39]} 27. Bd5 {[%clk 0:01:56]}  Rf8 {[%clk 0:00:23]} 28. Bb3 {[%clk 0:01:51]}  Ra5 {[%clk 0:00:20]} 29. Kg3 {[%clk 0:01:50]}  g6 {[%clk 0:00:19]} 30. f6 {[%clk 0:01:43]}  g5 {[%clk 0:00:19]} 31. h4 {[%clk 0:01:42]}  h6 {[%clk 0:00:20]} 32. h5 {[%clk 0:01:33]}  b5 {[%clk 0:00:18]} 33. Rb7 {[%clk 0:01:32]}  Ra6 {[%clk 0:00:16]} 34. Rxb5 {[%clk 0:01:26]}  Rxf6 {[%clk 0:00:16]} 35. Ra5 {[%clk 0:01:11]}  Re8 {[%clk 0:00:10]} 36. Rxa7 {[%clk 0:01:04]}  Re3 {[%clk 0:00:10]} 37. Bd5 {[%clk 0:01:04]}  Rd3 {[%clk 0:00:07]} 38. Be4 {[%clk 0:01:03]}  Rd2 {[%clk 0:00:06]} 39. Ra3 {[%clk 0:00:53]}  Rb6 {[%clk 0:00:06]} 40. Rd3 {[%clk 0:00:53]}  Rxd3 {[%clk 0:00:04]} 41. Bxd3 {[%clk 0:00:53]}  Kg7 {[%clk 0:00:05]} 42. Bc4 {[%clk 0:00:48]}  Rb4 {[%clk 0:00:04]} 43. Bb3 {[%clk 0:00:48]}  Kf6 {[%clk 0:00:04]} 44. Kf2 {[%clk 0:00:48]}  Ke7 {[%clk 0:00:04]} 45. Ke3 {[%clk 0:00:48]}  f6 {[%clk 0:00:05]} 46. Kd3 {[%clk 0:00:48]}  Kd6 {[%clk 0:00:05]} 47. Kc3 {[%clk 0:00:48]}  Rf4 {[%clk 0:00:05]} 48. Bd1 {[%clk 0:00:47]}  Kc5 {[%clk 0:00:05]} 49. a4 {[%clk 0:00:46]}  f5 {[%clk 0:00:04]} 50. Kd3 {[%clk 0:00:45]}  fxg4 {[%clk 0:00:04]} 51. fxg4 {[%clk 0:00:44]}  Kd5 {[%clk 0:00:03]} 52. Kc3 {[%clk 0:00:33]}  Kc5 {[%clk 0:00:03]} 53. Kb3 {[%clk 0:00:28]}  Rf8 {[%clk 0:00:04]} 54. Bc2 {[%clk 0:00:28]}  Rf4 {[%clk 0:00:03]} 55. Bd1 {[%clk 0:00:21]}  Rd4 {[%clk 0:00:04]} 56. Be2 {[%clk 0:00:18]}  Rd2 {[%clk 0:00:04]} 57. Ba6 {[%clk 0:00:14]}  Rg2 {[%clk 0:00:04]} 58. Bc8 {[%clk 0:00:13]}  Rg3+ {[%clk 0:00:04]} 59. Kc2 {[%clk 0:00:13]}  Kb4 {[%clk 0:00:05]} 60. Bd7 {[%clk 0:00:10]}  Rc3+ {[%clk 0:00:05]} 61. Kd2 {[%clk 0:00:00]}  Ra3 {[%clk 0:00:06]} 0-1


[Site "https://www.chess.com"]

[Event "Titled Tuesday Blitz May 23 Late 2023"]
[White "Bashkansky, Ethan"]
[Black "Santos Flores, Alberto"]
[WhiteFideId "2071533"]
[BlackFideId "3601234"]
[WhiteElo "2349"]
[BlackElo "2235"]
[Result "0-1"]
[Round "09"]
[TimeControl "180+2"]
[Date "2023.05.23"]
[WhiteClock "0:01:02"]
[BlackClock "0:01:25"]

1. d4 {[%clk 0:03:00]}  d5 {[%clk 0:03:00]} 2. c4 {[%clk 0:03:00]}  c6 {[%clk 0:03:00]} 3. Nc3 {[%clk 0:03:00]}  Nf6 {[%clk 0:03:00]} 4. e3 {[%clk 0:03:01]}  a6 {[%clk 0:02:59]} 5. Nf3 {[%clk 0:02:58]}  Bf5 {[%clk 0:02:57]} 6. Bd3 {[%clk 0:02:56]}  Bg6 {[%clk 0:02:56]} 7. O-O {[%clk 0:02:54]}  e6 {[%clk 0:02:55]} 8. Ne5 {[%clk 0:02:48]}  Bxd3 {[%clk 0:02:53]} 9. Qxd3 {[%clk 0:02:46]}  Nbd7 {[%clk 0:02:53]} 10. f4 {[%clk 0:02:42]}  Be7 {[%clk 0:02:53]} 11. b3 {[%clk 0:02:31]}  O-O {[%clk 0:02:52]} 12. Bb2 {[%clk 0:02:30]}  Nxe5 {[%clk 0:02:48]} 13. fxe5 {[%clk 0:02:27]}  Nd7 {[%clk 0:02:49]} 14. c5 {[%clk 0:02:08]}  f6 {[%clk 0:02:46]} 15. exf6 {[%clk 0:02:06]}  Bxf6 {[%clk 0:02:45]} 16. e4 {[%clk 0:02:00]}  h6 {[%clk 0:02:17]} 17. Rae1 {[%clk 0:01:51]}  Qc7 {[%clk 0:01:55]} 18. Ne2 {[%clk 0:01:28]}  Nxc5 {[%clk 0:01:27]} 19. dxc5 {[%clk 0:01:28]}  Bxb2 {[%clk 0:01:27]} 20. Nf4 {[%clk 0:01:02]}  Rxf4 {[%clk 0:01:25]} 0-1


[Site "https://www.chess.com"]